bitfinex-derivatives/quotes_SOLF0:USTF0_20250301
["timestamp","ask_amount","ask_price","bid_price","bid_amount"]
[1740837001275,6.53335316,138.79,138.76,8.35209236]
[1740837001670,0.04595316,138.79,138.76,9.236e-05]
[1740837003072,6.488,138.77,138.76,9.236e-05]
[1740837004570,17.608,138.77,138.76,9.236e-05]
[1740837012586,6.488,138.77,138.76,9.236e-05]
[1740837017382,10.088,138.77,138.76,9.236e-05]
[1740837019997,11.33903348,138.77,138.76,9.236e-05]
[1740837021192,32.95903348,138.77,138.76,9.236e-05]
[1740837022201,32.95902139,138.77,138.76,9.236e-05]
[1740837023296,11.33897363,138.77,138.76,9.236e-05]
[1740837023796,6.488,138.77,138.76,9.236e-05]
[1740837024998,17.548,138.77,138.76,9.236e-05]
[1740837027401,106.36593471,138.79,138.76,9.236e-05]
[1740837027896,6.4878,138.78,138.76,9.236e-05]
[1740837028208,0.04595316,138.79,138.76,9.236e-05]
[1740837028497,6.488,138.77,138.76,9.236e-05]
[1740837029697,10.088,138.77,138.76,9.236e-05]
[1740837030203,6.488,138.77,138.76,9.236e-05]
[1740837031891,31.708,138.77,138.76,9.236e-05]
[1740837032098,38.37090627,138.77,138.76,9.236e-05]
[1740837032400,269.19091361,138.77,138.76,9.236e-05]
[1740837033103,262.70291361,138.77,138.61,5.75]
[1740837033291,21.62,138.75,138.61,5.75]
[1740837033495,33.93084338,138.74,138.61,5.75]
[1740837033797,6.4947,138.63,138.61,5.75]
[1740837033987,11.06,138.67,138.61,3.8491]
[1740837034191,11.06,138.66,138.57,1.8859]
[1740837034385,0.9262,138.72,138.57,3.7183]
[1740837034386,11.1127066,138.65,138.57,3.7183]
[1740837034592,11.1127066,138.65,138.6,0.04940675]
[1740837034998,17.6064066,138.65,138.6,0.04940675]
[1740837035202,11.1127066,138.65,138.6,2.05260675]
[1740837035502,6.4949,138.63,138.6,2.05260675]
[1740837036502,11.1127066,138.65,138.6,2.05260675]
[1740837039405,11.1127066,138.65,138.6,8.54820675]
[1740837039595,0.0527066,138.65,138.6,2.05260675]
[1740837039905,0.0527066,138.65,138.62,6.4947]
[1740837040409,1.9896,138.71,138.6,2.05260675]
[1740837040706,11.12,138.7,138.6,2.0032]
[1740837040902,11.14,138.7,138.6,2.0032]
[1740837041410,6.4927,138.67,138.6,2.0032]
[1740837041614,0.04777786,138.66,138.64,0.04763977]
[1740837042400,11.2,138.73,138.64,0.04763977]
[1740837042607,11.2,138.73,138.6,2.0032]
[1740837043609,0.05451052,138.68,138.65,0.05335339]
[1740837043813,0.05451052,138.68,138.66,6.4927]
[1740837044200,0.05451052,138.68,138.66,8.4106]
[1740837044403,6.4913,138.7,138.66,8.4106]
[1740837044600,6.4909,138.71,138.67,6.4923]
[1740837045104,6.4913,138.7,138.67,6.4923]
[1740837045299,11.18,138.73,138.66,1.9179]
[1740837045611,6.4921,138.69,138.67,0.05111112]
[1740837045804,0.05401718,138.7,138.67,0.05111112]
[1740837046209,6.4917,138.69,138.67,0.05111112]
[1740837047208,0.05401718,138.7,138.67,0.05111112]
[1740837049415,6.4922,138.68,138.67,0.05111112]
[1740837051714,11.25401718,138.7,138.67,0.05111112]
[1740837052116,6.4922,138.68,138.67,0.05111112]
[1740837054119,11.25401718,138.7,138.62,1.8781]
[1740837054418,11.25401718,138.7,138.61,1.8564]
[1740837054419,1.846,138.69,138.61,1.8564]
[1740837054827,6.4948,138.63,138.61,1.8564]
[1740837055412,6.5479558,138.63,138.61,1.90436217]
[1740837056122,0.0531558,138.63,138.61,1.90436217]
[1740837056622,11.26,138.65,138.61,1.90436217]
[1740837057016,11.28,138.68,138.61,1.90436217]
[1740837057713,0.05149362,138.66,138.61,8.39976217]
[1740837058327,0.05149362,138.66,138.61,1.90436217]
[1740837059223,6.4941,138.64,138.61,1.90436217]
[1740837059527,0.05149362,138.66,138.61,8.39976217]
[1740837059722,6.4939,138.65,138.61,8.39976217]
[1740837060223,0.05149362,138.66,138.61,1.90436217]
[1740837060920,11.34,138.68,138.61,1.90436217]
[1740837061522,1.9947,138.73,138.61,1.90436217]
[1740837061721,6.492,138.69,138.61,1.8564]
[1740837062025,0.04774977,138.66,138.64,0.04923069]
[1740837062323,6.4914,138.7,138.66,6.493]
[1740837062510,11.34,138.72,138.66,6.493]
[1740837062711,6.4917,138.69,138.65,6.4934]
[1740837062919,11.34,138.72,138.61,1.8564]
[1740837063223,6.4918,138.69,138.61,1.8564]
[1740837063527,0.05198407,138.68,138.65,0.05118148]
[1740837063823,11.36,138.72,138.65,0.05118148]
[1740837064025,6.4913,138.7,138.65,0.05118148]
[1740837064518,6.4913,138.7,138.66,6.493]
[1740837064712,0.03025417,138.69,138.66,6.493]
[1740837065518,6.52205417,138.69,138.66,6.493]
[1740837066319,11.36,138.75,138.65,0.05118148]
[1740837066525,42.3691586,138.77,138.65,1.8758]
[1740837066714,6.4891,138.75,138.71,6.4905]
[1740837066915,42.3691586,138.77,138.65,1.8758]
[1740837067116,42.3691586,138.77,138.65,191.36643018]
[1740837067317,42.3691586,138.77,138.7,0.04868955]
[1740837067518,28.9963586,138.77,138.7,0.04868955]
[1740837067719,6.4892,138.75,138.71,6.4906]
[1740837067920,6.4892,138.75,138.71,8.4184]
[1740837068223,28.9963586,138.77,138.71,1.9278]
[1740837068426,6.4886,138.76,138.72,6.4903]
[1740837068824,6.4886,138.76,138.73,0.05044366]
[1740837069418,11.36,138.78,138.73,0.05044366]
[1740837069928,6.4892,138.75,138.73,0.05044366]
[1740837070127,11.36,138.79,138.73,0.05044366]
[1740837071430,11.36,138.79,138.73,4.366e-05]
[1740837071732,11.36,138.79,138.66,1.98]
[1740837071733,6.4926,138.67,138.66,1.98]
[1740837071933,11.38,138.71,138.65,1.8758]
[1740837072432,11.38,138.71,138.64,1.9619]
[1740837072616,0.05044366,138.69,138.66,0.04557947]
[1740837073721,11.38,138.76,138.66,0.04557947]
[1740837073929,6.489,138.75,138.71,6.4907]
[1740837074933,28.9963586,138.76,138.72,0.0508231]
[1740837075233,6.4898,138.73,138.65,11.38]
[1740837075433,6.4898,138.73,138.68,0.05254114]
[1740837075633,6.4898,138.73,138.69,6.4916]
[1740837076022,6.4903,138.72,138.68,0.05254114]
[1740837076224,28.9963586,138.76,138.68,6.54454114]
[1740837076527,28.9963586,138.76,138.68,0.05254114]
[1740837076730,6.4905,138.72,138.68,6.54474114]
[1740837077328,6.4896,138.74,138.7,6.4912]
[1740837077524,28.9963586,138.76,138.65,200.87063018]
[1740837077835,6.4897,138.74,138.71,0.05242078]
[1740837078331,11.36,138.79,138.71,0.05242078]
[1740837080432,6.4892,138.75,138.71,6.54312078]
[1740837081234,11.36,138.79,138.71,0.05242078]
[1740837081435,40.3363586,138.8,138.71,0.05242078]
[1740837081734,40.3363586,138.8,138.7,3.8776]
[1740837082044,28.9963586,138.8,138.74,0.04679367]
[1740837082423,6.4888,138.76,138.74,0.04679367]
[1740837082628,28.9963586,138.8,138.74,0.04679367]
[1740837083023,6.4889,138.75,138.74,0.04679367]
[1740837083636,11.34,138.76,138.58,331.73390161]
[1740837083829,1.9628,138.75,138.6,1.8611]
[1740837084539,1.9628,138.75,138.62,6.4948]
[1740837084540,1.8882,138.74,138.62,6.4948]
[1740837084740,6.492,138.69,138.62,6.4948]
[1740837084937,6.53879367,138.69,138.67,0.0495459]
[1740837085138,6.53879367,138.69,138.64,0.04720058]
[1740837085330,6.4913,138.7,138.64,0.04720058]
[1740837085530,0.04679367,138.68,138.6,1.8611]
[1740837085842,0.04679367,138.68,138.66,0.0533962]
[1740837086138,0.04679367,138.68,138.64,11.42]
[1740837088637,6.53929367,138.68,138.64,11.42]
[1740837089342,6.4927,138.67,138.64,11.42]
[1740837089643,0.04679367,138.68,138.64,11.42]
[1740837089846,0.04679367,138.68,138.63,0.04841764]
[1740837090032,6.493,138.67,138.63,0.04841764]
[1740837091046,6.4931,138.66,138.63,0.04841764]
[1740837092043,0.04679367,138.68,138.63,0.04841764]
[1740837092249,6.494,138.64,138.63,0.04841764]
[1740837093341,0.04679367,138.65,138.55,6.4982]
[1740837093542,11.36,138.66,138.55,6.4982]
[1740837094248,13.2189,138.66,138.55,6.4982]
[1740837094554,0.04793519,138.62,138.59,0.05289642]
[1740837095054,6.54303519,138.62,138.59,0.05289642]
[1740837095850,0.04793519,138.62,138.59,0.05289642]
[1740837100457,2.0197,138.67,138.59,0.05289642]
[1740837100643,11.36,138.69,138.59,2.01939642]
[1740837100843,11.36,138.69,138.59,1.9665]
[1740837101359,6.4923,138.68,138.63,6.4942]
[1740837101540,1.9258,138.71,138.64,0.04608328]
[1740837101855,0.04727612,138.67,138.64,0.04608328]
[1740837102149,0.04727612,138.67,138.66,6.4931]
[1740837104857,1.828,138.78,138.64,0.04608328]
[1740837105059,11.34,138.77,138.63,11.34]
[1740837105254,3.7068,138.78,138.63,11.34]
[1740837105463,11.34,138.77,138.63,11.34]
[1740837106147,11.34,138.77,138.69,0.05273142]
[1740837106858,6.4888,138.76,138.71,6.4904]
[1740837107260,11.34,138.77,138.72,0.05001873]
[1740837107463,6.489,138.75,138.63,200.83063018]
[1740837107756,6.489,138.75,138.63,11.34]
[1740837108060,6.489,138.75,138.68,0.04686733]
[1740837108360,6.489,138.75,138.7,6.491]
[1740837108560,6.4894,138.74,138.7,6.491]
[1740837108746,6.4894,138.74,138.71,0.05480467]
[1740837108951,6.4894,138.74,138.69,6.4914]
[1740837109158,11.34,138.77,138.71,0.04674843]
[1740837109359,11.34,138.77,138.63,208.35888819]
[1740837109557,11.34,138.77,138.73,0.04635678]
[1740837109755,11.34,138.77,138.67,6.4923]
[1740837109954,11.34,138.77,138.64,11.32]
[1740837110452,1.25523049,138.76,138.63,189.49063018]
[1740837110653,11.34,138.77,138.63,189.49063018]
[1740837110855,6.493,138.67,138.63,195.98493018]
[1740837111052,11.3506,138.71,138.63,189.49063018]
[1740837111250,11.3506,138.71,138.64,0.05495404]
[1740837111457,6.4934,138.66,138.64,0.05495404]
[1740837111854,6.54157368,138.66,138.64,0.05495404]
[1740837112153,0.04817368,138.66,138.64,0.05495404]
[1740837113348,0.04817368,138.66,138.65,6.4936]
[1740837114457,11.28,138.74,138.65,3.6]
[1740837114663,11.28,138.74,138.64,11.28]
[1740837115161,6.4916,138.7,138.66,6.4928]
[1740837115351,11.28,138.74,138.64,11.28]
[1740837115551,11.28,138.74,138.68,0.05219071]
[1740837116165,6.4915,138.7,138.68,0.05219071]
[1740837116661,11.28,138.74,138.68,0.05219071]
[1740837117252,6.4917,138.69,138.68,0.05219071]
[1740837118063,11.28,138.74,138.68,0.05219071]
[1740837119567,6.4904,138.72,138.68,6.54419071]
[1740837119766,6.4904,138.72,138.68,0.05219071]
[1740837120669,11.28,138.74,138.68,0.05219071]
[1740837120865,13.1244,138.77,138.68,0.05219071]
[1740837121065,13.1244,138.77,138.67,5.7712]
[1740837121271,13.1244,138.77,138.72,6.4903]
[1740837121470,6.4892,138.75,138.72,6.4903]
[1740837121671,1.9044,138.77,138.71,0.05345108]
[1740837121874,1.9044,138.77,138.73,6.4897]
[1740837122060,6.4886,138.76,138.73,6.4897]
[1740837122261,6.4886,138.76,138.71,0.05345108]
[1740837122457,6.4886,138.76,138.72,6.4902]
[1740837122970,6.4903,138.72,138.71,0.05345108]
[1740837124960,1.9044,138.77,138.71,0.05345108]
[1740837127367,13.0644,138.77,138.71,0.05345108]
[1740837127768,1.9044,138.77,138.71,0.05345108]
[1740837127972,6.4868,138.8,138.75,6.4889]
[1740837128373,20.76118678,138.81,138.76,0.05146404]
[1740837128570,6.487,138.79,138.74,6.4889]
[1740837128771,6.487,138.79,138.77,0.05339387]
[1740837129071,17.6269,138.8,138.77,0.0550054]
[1740837129870,6.4863,138.81,138.77,0.0550054]
[1740837130072,17.6263,138.81,138.77,0.0550054]
[1740837130683,6.4863,138.81,138.77,0.0550054]
[1740837130877,45.10294538,138.83,138.77,0.0550054]
[1740837131181,38.61754538,138.83,138.77,0.0550054]
[1740837131579,38.61754538,138.83,138.81,6.4858]
[1740837131773,38.61754538,138.83,138.75,1.9702]
[1740837131975,38.61754538,138.83,138.81,0.05114198]
[1740837132284,38.61754538,138.83,138.78,11.14]
[1740837132581,38.61754538,138.83,138.82,6.4856]
[1740837133081,38.61754538,138.83,138.81,6.4859]
[1740837133479,77.32362295,138.84,138.79,0.0524757]
[1740837133680,6.4834,138.87,138.82,6.4856]
[1740837133868,51.62344538,138.92,138.78,11.14]
[1740837134066,38.61754538,138.92,138.85,6.4842]
[1740837134266,45.09864538,138.92,138.78,200.63063018]
[1740837134477,38.61754538,138.92,138.87,0.04562813]
[1740837134680,38.61754538,138.92,138.87,6.4832]
[1740837134888,38.61754538,138.92,138.88,0.05407394]
[1740837135275,38.61754538,138.92,138.88,6.53687394]
[1740837136773,38.61754538,138.92,138.88,0.05407394]
[1740837136978,38.61754538,138.92,138.89,6.4823]
[1740837137287,38.61754538,138.92,138.88,0.05407394]
[1740837137492,38.61754538,138.92,138.88,11.17407394]
[1740837137680,32.54074538,138.92,138.88,14.77407394]
[1740837137881,26.88698279,138.92,138.88,14.77407394]
[1740837138079,242.42325344,138.96,138.88,14.77407394]
[1740837138080,35.28688279,138.99,138.88,14.77407394]
[1740837138288,28.80908279,138.99,138.88,11.12]
[1740837138493,28.80908279,138.99,138.92,0.04965449]
[1740837139184,6.4787,138.97,138.92,0.04965449]
[1740837139592,39.94908279,138.99,138.92,0.04965449]
[1740837139888,6.4799,138.95,138.92,0.04965449]
[1740837140193,39.94908279,138.99,138.92,0.04965449]
[1740837140491,6.479,138.97,138.92,6.53045449]
[1740837141391,35.28688279,138.99,138.92,0.04965449]
[1740837141889,8.3999,138.99,138.94,6.4799]
[1740837142287,6.4782,138.98,138.95,0.04729636]
[1740837142495,1.9221,138.99,138.92,6.4806]
[1740837142793,0.04972268,138.98,138.92,6.4806]
[1740837143295,6.4787,138.97,138.92,6.4806]
[1740837143592,6.4787,138.97,138.93,0.05526312]
[1740837143982,6.4787,138.97,138.93,6.53576312]
[1740837145088,6.4794,138.96,138.93,0.05526312]
[1740837148096,0.04972268,138.98,138.93,0.05526312]
[1740837149500,0.04972268,138.98,138.93,11.15526312]
[1740837149701,0.04972268,138.98,138.94,1.901]
[1740837149900,0.04972268,138.98,138.97,6.4786]
[1740837151099,11.1,139.07,138.97,3.6]
[1740837151300,11.1,139.07,138.94,1.901]
[1740837151502,6.4746,139.06,138.94,1.901]
[1740837151813,6.4746,139.06,139.02,6.4759]
[1740837152302,6.4746,139.06,139.03,0.05438686]
[1740837152497,6.4739,139.08,139.04,6.4753]
[1740837152692,5.6715,139.09,139.03,0.05438686]
[1740837153101,5.6715,139.09,139.06,6.4741]
[1740837153496,5.6715,139.09,138.98,200.57063018]
[1740837153692,5.6715,139.09,139.06,0.05526652]
[1740837153991,3.7177,139.09,138.98,200.57063018]
[1740837154200,11.12,139.13,138.98,200.57063018]
[1740837154401,5.7494,139.16,139.02,0.04598217]
[1740837154697,5.7494,139.16,139.11,6.4721]
[1740837154698,23.3393,139.16,139.11,6.4721]
[1740837155105,5.7494,139.16,139.03,202.55493018]
[1740837155307,5.7494,139.16,139.12,0.04701238]
[1740837155606,5.7494,139.16,139.11,6.4717]
[1740837155799,5.7494,139.16,139.13,0.04898998]
[1740837156596,5.7494,139.16,139.05,11.12]
[1740837156799,6.471,139.14,139.08,6.4733]
[1740837157103,3.8259,139.16,139.08,6.4733]
[1740837157309,6.4718,139.12,139.07,6.4739]
[1740837157611,3.8259,139.16,139.05,11.12]
[1740837157801,0.04798085,139.11,139.08,0.0479887]
[1740837158003,0.04798085,139.11,139.03,13.0443]
[1740837158309,0.04798085,139.11,139.03,11.1]
[1740837158507,0.04798085,139.11,139.03,17.5758]
[1740837158708,0.04798085,139.11,139.03,11.1]
[1740837158898,0.04798085,139.11,139.0,3.7283]
[1740837159094,11.1,139.13,139.06,0.05475492]
[1740837159298,11.1,139.13,139.0,1.8755]
[1740837159299,0.05217699,139.07,139.0,1.8755]
[1740837159495,6.475,139.05,139.0,8.3526]
[1740837160198,11.1,139.08,138.97,1.9035]
[1740837160405,0.05184868,139.04,139.01,0.05279868]
[1740837160909,6.4766,139.02,139.01,0.05279868]
[1740837161209,0.05184868,139.04,139.01,0.05279868]
[1740837161714,0.05184868,139.04,138.95,241.36]
[1740837162106,3.7782,139.07,138.95,241.36]
[1740837162303,3.7782,139.07,138.96,6.479]
[1740837162504,3.7782,139.07,138.95,230.28]
[1740837162910,0.04861944,139.02,139.0,0.0477922]
[1740837163112,0.04861944,139.02,138.95,236.7595]
[1740837163309,11.12,139.03,138.95,236.7595]
[1740837164099,6.4776,139.0,138.95,230.28]
[1740837164305,6.52834125,139.0,138.98,0.05314872]
[1740837165009,0.05074125,139.0,138.99,6.4777]
[1740837165412,0.05074125,139.0,138.98,17.63114872]
[1740837165609,0.05074125,139.0,138.98,6.53114872]
[1740837168112,0.05074125,139.0,138.98,0.05314872]
[1740837168327,0.05074125,139.0,138.88,11.1]
[1740837168518,3.7909,139.0,138.88,11.1]
[1740837168905,10.2681,139.0,138.95,6.4794]
[1740837169506,0.04992683,138.99,138.96,0.05327617]
[1740837171709,2.683e-05,138.99,138.96,0.05327617]
[1740837171909,2.683e-05,138.99,138.98,6.4782]
[1740837175428,2.683e-05,138.99,138.97,6.4784]
[1740837175722,2.683e-05,138.99,138.96,0.05327617]
[1740837176027,2.01602683,138.99,138.96,0.05327617]
[1740837176614,8.49372683,138.99,138.96,0.05327617]
[1740837178123,6.4782,138.98,138.95,3.4413]
[1740837178722,8.49402683,138.99,138.95,3.4413]
[1740837179422,8.49402683,138.99,138.96,0.0461973]
[1740837180819,2.01602683,138.99,138.96,0.0461973]
[1740837181530,2.01602683,138.99,138.85,241.32]
[1740837181726,2.016,138.99,138.89,6.482]
[1740837182135,6.4805,138.93,138.89,6.482]
[1740837182320,11.02,138.95,138.9,6.4819]
[1740837182518,11.02,138.95,138.85,243.1575]
[1740837182519,11.02,138.95,138.85,232.1375]
[1740837182727,0.04925683,138.94,138.91,0.04755417]
[1740837182922,3.82815683,138.94,138.91,0.04755417]
[1740837183129,3.82815683,138.94,138.8,99.60003425]
[1740837183431,3.7789,138.94,138.84,6.4844]
[1740837183926,3.7789,138.94,138.87,6.4833]
[1740837184122,3.7789,138.94,138.8,112.46953425]
[1740837184320,6.52934294,138.92,138.89,0.05364025]
[1740837184524,6.53186537,138.92,138.89,0.05236286]
[1740837184722,0.05086537,138.92,138.89,0.05236286]
[1740837188134,0.05086537,138.92,138.9,6.4816]
[1740837188725,0.05086537,138.92,138.89,6.53466286]
[1740837189127,6.53206537,138.92,138.89,0.05236286]
[1740837189433,0.05086537,138.92,138.89,0.05236286]
[1740837190533,0.05086537,138.92,138.91,6.4814]
[1740837193734,6.4764,139.02,138.91,3.6]
[1740837193941,1.83,139.03,138.92,1.9746]
[1740837194536,8.3062,139.03,138.99,6.4776]
[1740837194932,0.05494926,139.02,139.0,0.04607825]
[1740837196736,0.05494926,139.02,138.92,13.0946]
[1740837196935,3.9754,139.04,138.92,13.0946]
[1740837197741,3.9754,139.04,138.89,11.12]
[1740837197942,6.4785,138.98,138.97,0.04537891]
[1740837198143,11.1,138.99,138.97,0.04537891]
[1740837198358,11.14903322,138.99,138.97,0.04537891]
[1740837198729,17.62703322,138.99,138.97,0.04537891]
[1740837199247,11.14903322,138.99,138.9,1.9281]
[1740837199540,6.479,138.97,138.91,6.4813]
[1740837200337,6.4796,138.95,138.9,8.4098]
[1740837200545,6.5298182,138.95,138.93,0.05098297]
[1740837201343,0.0502182,138.95,138.93,0.05098297]
[1740837201852,0.0502182,138.95,138.94,6.48]
[1740837202230,0.0502182,138.95,138.93,0.05098297]
[1740837203845,6.48,138.94,138.93,0.05098297]
[1740837205737,0.0502182,138.95,138.93,0.05098297]
[1740837206332,6.5299182,138.95,138.93,0.05098297]
[1740837207141,0.0502182,138.95,138.93,0.05098297]
[1740837207549,0.0502182,138.95,138.94,6.48]
[1740837211755,8.4294,139.02,138.93,0.05098297]
[1740837211948,8.4294,139.02,138.91,1.902]
[1740837212646,8.4294,139.02,138.98,6.4779]
[1740837212843,0.05114286,138.98,138.95,0.05082289]
[1740837213042,9.62118678,139.05,139.0,6.4768]
[1740837213238,20.66118678,139.05,138.91,1.902]
[1740837213455,6.4761,139.03,139.01,0.05021174]
[1740837213643,6.4761,139.03,138.91,1.902]
[1740837213644,0.04542976,138.99,138.98,6.4779]
[1740837213955,6.4761,139.03,138.97,0.05079294]
[1740837214253,0.05385918,139.0,138.91,1.902]
[1740837214443,6.4755,139.04,139.0,6.4769]
[1740837214643,11.04,139.05,138.91,1.902]
[1740837214644,0.04885688,138.97,138.95,11.04]
[1740837214844,11.04,139.05,138.95,11.04]
[1740837215148,17.5152,139.05,138.95,11.04]
[1740837215347,0.05042054,139.01,138.99,0.05505376]
[1740837215950,0.05042054,139.01,139.0,6.4769]
[1740837219757,0.05042054,139.01,138.99,0.05505376]
[1740837220054,6.4778,138.99,138.91,1.902]
[1740837220356,14.6935,139.0,138.91,1.902]
[1740837220549,14.6935,139.0,138.9,11.0]
[1740837220751,14.6935,139.0,138.95,6.4792]
[1740837221163,0.05013923,138.99,138.96,0.05486111]
[1740837221354,6.52803923,138.99,138.96,0.05486111]
[1740837221859,0.05013923,138.99,138.96,6.53376111]
[1740837224258,0.05013923,138.99,138.96,0.05486111]
[1740837225258,0.05013923,138.99,138.98,6.4782]
[1740837225561,0.05013923,138.99,138.96,0.05486111]
[1740837225955,0.05013923,138.99,138.96,6.53366111]
[1740837227261,0.05013923,138.99,138.96,0.05486111]
[1740837227767,6.4783,138.98,138.96,0.05486111]
[1740837228958,6.4786,138.97,138.96,0.05486111]
[1740837229165,1.9939,138.98,138.84,1.8946]
[1740837229753,6.4808,138.93,138.89,6.4824]
[1740837229959,11.06,138.92,138.84,1.8946]
[1740837230155,1.9939,138.98,138.84,1.8946]
[1740837230156,0.04872438,138.9,138.87,0.05384367]
[1740837230362,2.438e-05,138.9,138.89,6.4824]
[1740837230566,11.06,138.96,138.84,11.06]
[1740837231165,11.06,138.96,138.85,1.8889]
[1740837231358,11.06,138.96,138.86,1.8606]
[1740837231558,11.06,138.96,138.95,6.4796]
[1740837231755,11.06,138.96,138.86,1.8606]
[1740837231964,6.4796,138.95,138.94,0.047378]
[1740837232163,11.06,138.96,138.86,1.8606]
[1740837232366,11.10977884,138.96,138.93,0.04856977]
[1740837232561,6.4799,138.95,138.9,6.4815]
[1740837232752,6.4799,138.95,138.93,0.05039718]
[1740837232952,0.04812973,138.94,138.93,0.05039718]
[1740837233370,0.04812973,138.94,138.83,6.4848]
[1740837233371,3.64812973,138.94,138.83,6.4848]
[1740837233561,1.26287748,138.93,138.78,11.79204593]
[1740837233759,5.40495592,138.94,138.78,11.79204593]
[1740837233965,1.26295459,138.93,138.78,11.79204593]
[1740837234168,188.78403091,138.95,138.82,6.4853]
[1740837234471,0.04816181,138.9,138.87,0.05100694]
[1740837234773,0.04816181,138.9,138.78,11.79204593]
[1740837234774,11.18,138.89,138.78,11.79204593]
[1740837234974,6.4839,138.86,138.79,6.4867]
[1740837235159,11.18,138.89,138.78,11.79204593]
[1740837235669,6.4841,138.86,138.79,6.4869]
[1740837235974,6.4841,138.86,138.82,0.05114502]
[1740837235975,0.05335565,138.85,138.82,0.05114502]
[1740837236971,6.53765565,138.85,138.82,0.05114502]
[1740837238976,0.05335565,138.85,138.82,0.05114502]
[1740837239274,0.05335565,138.85,138.83,6.4848]
[1740837240574,0.05335565,138.85,138.84,6.4847]
[1740837241077,1.88,138.92,138.82,0.05114502]
[1740837241275,1.88,138.92,138.8,11.12]
[1740837241471,6.4829,138.88,138.8,11.12]
[1740837241873,6.4829,138.88,138.84,6.4844]
[1740837242175,0.0551542,138.87,138.85,0.05441635]
[1740837242367,6.4826,138.89,138.85,6.53861635]
[1740837242568,0.04772594,138.87,138.85,0.05441635]
[1740837242768,11.14,138.88,138.85,0.05441635]
[1740837242970,6.4838,138.86,138.85,0.05441635]
[1740837243174,0.04756378,138.87,138.85,0.05441635]
[1740837244585,0.04756378,138.87,138.86,6.4838]
[1740837246390,0.04756378,138.87,138.85,6.53841635]
[1740837246978,0.04756378,138.87,138.86,6.4838]
[1740837247766,3.9084,138.93,138.85,0.05441635]
[1740837247767,15.0284,138.93,138.85,0.05441635]
[1740837248481,15.0284,138.93,138.87,6.4829]
[1740837248780,21.5089,138.93,138.84,1.858]
[1740837248981,0.04766121,138.91,138.89,0.04702388]
[1740837249686,0.04766121,138.91,138.89,6.52932388]
[1740837249982,0.04766121,138.91,138.89,0.04702388]
[1740837250179,0.04766121,138.91,138.9,6.4819]
[1740837252082,1.9947,138.98,138.95,6.4794]
[1740837253087,1.9947,138.98,138.96,6.4791]
[1740837253294,0.04593924,138.98,138.96,6.4791]
[1740837254892,0.04593924,138.98,138.97,6.4786]
[1740837256190,0.04593924,138.98,138.95,6.52764556]
[1740837257693,0.04593924,138.98,138.96,6.4787]
[1740837258095,0.04593924,138.98,138.95,0.04834556]
[1740837258502,0.04593924,138.98,138.97,6.4786]
[1740837265010,0.04593924,138.98,138.96,1.8404]
[1740837265011,11.02,139.04,138.96,1.8404]
[1740837265210,11.02,139.04,139.02,6.4762]
[1740837265708,21.2885,139.05,139.02,6.4762]
[1740837266209,21.33659454,139.05,139.02,6.52782482]
[1740837266606,21.33659454,139.05,139.02,0.05162482]
[1740837269612,6.52309454,139.05,139.02,0.05162482]
[1740837269805,6.52309454,139.05,139.02,6.52792482]
[1740837270913,6.4754,139.04,139.02,0.05162482]
[1740837271317,0.04809454,139.05,139.02,0.05162482]
[1740837271699,6.4758,139.03,139.02,0.05162482]
[1740837275414,3.6,139.03,138.91,230.42]
[1740837275619,1.88,139.02,138.91,230.42]
[1740837276022,6.4782,138.98,138.94,6.4799]
[1740837276212,1.9781,139.01,138.94,6.4799]
[1740837276412,0.05259428,138.97,138.95,0.04800375]
[1740837277522,6.53129428,138.97,138.95,0.04800375]
[1740837277707,0.05259428,138.97,138.95,0.04800375]
[1740837278520,0.05259428,138.97,138.96,6.4791]
[1740837278822,0.05259428,138.97,138.95,0.04800375]
[1740837279027,0.05259428,138.97,138.95,6.52730375]
[1740837280120,0.05259428,138.97,138.95,0.04800375]
[1740837280725,0.05259428,138.97,138.96,6.4791]
[1740837281626,11.0,139.05,139.01,6.4766]
[1740837281818,17.4752,139.05,139.01,6.4766]
[1740837282420,11.0,139.05,139.02,6.4762]
[1740837282725,11.04641129,139.05,139.02,0.04751889]